Cogmind - Beta 15 *** ADVENTURER MODE // 2025.08.25 @ 21:58:30 Player: Plaidstone Result: Destroyed by WJ-4H4(R) with Subdweller Beam Cannon Performance ------------- Evolutions (0) 0 Regions Visited (3) 600 Robots Destroyed (18) 90 Value Destroyed (460) 460 Prototype IDs (5) 100 Alien Tech Used (0) 0 Bonus (0) 0 TOTAL SCORE: 1250 Bonus ------- None Cogmind --------- Core Integrity 0/250 Matter 281/300 Energy 119/125 System Corruption 0% Temperature Cool (9) Movement Rolling (200) Ox8 Location -10/Subcaves Parts ------- > --- POWER (1) -------- Light Ion Engine > --- PROPULSION (2) --- Wheel > --- UTILITY (2) ------ Huge Storage Unit Sensor Array > --- WEAPON (2) ------- Light Assault Rifle Battle Cannon > --- INVENTORY (25) --- Ion Engine Light Ion Engine Light Ion Engine Light Deuterium Engine Wheel Improved Heat Sink High-capacity Battery (250) Compact Matter Pod (150) Launcher Guidance Computer Power Shielding Improved Light Armor Plating Makeshift Light Armor Plating Light Assault Rifle Light Assault Rifle Light Cannon Peak State ------------ > --- POWER ------------ Light Ion Engine > --- PROPULSION ------- Light Treads Wheel > --- UTILITY ---------- Huge Storage Unit Sensor Array > --- WEAPON ----------- Assault Rifle Light Assault Rifle > --- INVENTORY -------- Ion Engine Light Ion Engine Light Ion Engine Light Deuterium Engine Wheel Improved Heat Sink High-capacity Battery Compact Matter Pod Launcher Guidance Computer Power Shielding Improved Light Armor Plating Makeshift Light Armor Plating Light Assault Rifle Light Assault Rifle Light Cannon Battle Cannon [Rating: 10] Favorites ----------- Power Light Ion Engine Engine Light Ion Engine Propulsion Light Treads Treads Light Treads Wheel Wheel Utility Huge Storage Unit Device Sensor Array Storage Huge Storage Unit Processor Targeting Computer Weapon Assault Rifle Ballistic Gun Assault Rifle Ballistic Cannon Battle Cannon Launcher Rocket Launcher Build | -11 -10 -10 -10 ------- Run | Yrd Mat Min Sub Slots Evolved . | . . . . Power . | . . . . Propulsion . | . . . . Utility . | . . . . Weapon . | . . . . Parts Attached 17 | 6 5 5 1 Power 1 | 1 . . . Engine 1 | 1 . . . Core . | . . . . Reactor . | . . . . Propulsion 4 | 2 1 1 . Treads 2 | 2 . . . Leg . | . . . . Wheel 2 | . 1 1 . Hover . | . . . . Flight . | . . . . Utility 4 | 1 3 . . Device 1 | . 1 . . Storage 2 | 1 1 . . Processor 1 | . 1 . . Hackware . | . . . . Protection . | . . . . Artifact . | . . . . Weapon 8 | 2 1 4 1 Energy Gun . | . . . . Energy Cannon . | . . . . Ballistic Gun 6 | 2 1 3 . Ballistic Cannon 1 | . . . 1 Launcher 1 | . . 1 . Special Weapon . | . . . . Impact Weapon . | . . . . Slashing Weapon . | . . . . Piercing Weapon . | . . . . Special Melee Weapon . | . . . . Unidentified Prototypes . | . . . . Parts Lost 8 | . . 6 2 Power . | . . . . Propulsion 3 | . . 2 1 Utility 1 | . . 1 . Weapon 4 | . . 3 1 Highest Loss Streak 6 | . . 6 2 To Critical Strikes . | . . . . Average Backups 11 | 2 7 12 14 Power 2 | . 1 2 4 Propulsion 1 | . 2 1 1 Utility 4 | . 2 4 6 Weapon 3 | 1 1 3 3 Tool/Special . | . . . . Unused Backups 17 | . 2 1 14 Power 4 | . . . 4 Propulsion 1 | . . . 1 Utility 9 | . 1 1 7 Weapon 3 | . 1 . 2 Tool/Special . | . . . . Average Slot Usage (%) 98 | . 97 99 99 Engine 14 | . 14 14 14 Treads 13 | . 14 13 13 Wheel 13 | . 13 13 14 Device 5 | . 1 5 14 Storage 14 | . 14 14 14 Processor 8 | . 11 8 . Ballistic Gun 27 | . 26 27 27 Peak Build Rating 10 | 6 7 9 10 Average Rating 7 | 4 6 8 9 On Entrance 5 | . 6 7 9 Naked Turns . | . . . . Heaviest Build 87 | 11 86 87 87 Greatest Support 40 | 40 10 20 10 Greatest Overweight (x) 8 | . 8 8 8 Average Overweight (x) 6 | . 4 7 8 Largest Inventory Capacity 25 | 8 25 25 25 Average Capacity 22 | 7 17 25 25 Most Carried 16 | 5 9 14 16 Average Carried 11 | 3 7 12 14 Final Capacity 25 | 8 25 25 25 Final Carried 15 | 4 9 14 15 Class Distribution -------------------- 100% | Mutant Dominant Class ---------------- Mutant | -10/Materials Mutant | -10/Mines Mutant | -10/Subcaves Resources | -11 -10 -10 -10 ----------- Run | Yrd Mat Min Sub Matter Collected 828 | 239 173 416 . Remotely . | . . . . Salvage Created 577 | . 119 458 . Parts 31 | . 8 23 . Haulers Intercepted . | . . . . Recyclers Shooed . | . . . . Parts Field Recycled . | . . . . Retrieved Matter . | . . . . Parts Self-Destructed 3 | . . . 3 Prevented . | . . . . Kills | -11 -10 -10 -10 ------- Run | Yrd Mat Min Sub Combat Hostiles Destroyed 32 | . 3 29 . Guns 21 | . 3 18 . AOE 11 | . . 11 . Classes Destroyed 4 | . 1 3 . Swarmer 9 | . . 9 . Grunt 7 | . 3 4 . Demolisher 2 | . . 2 . Assembled 14 | . . 14 . Best Kill Streak 16 | . 3 16 . Combat Bots Only 16 | . 3 16 . Max Kills in Single Turn 4 | . 1 4 . Gunslinging . | . . . . Exploded 4 | . . 4 . Melee . | . . . . Uniques/NPCs Destroyed . | . . . . Combat | -11 -10 -10 -10 -------- Run | Yrd Mat Min Sub Hostile Shots Fired 136 | . 12 117 7 Missed 46 | . 5 40 1 Hits 90 | . 7 77 6 Melee 5 | . . 5 . Projectile 85 | . 7 72 6 AOE 14 | . . 14 . Critical Strikes 1 | . . 1 . Damage Taken 1177 | . 59 1002 116 Core 259 | . 26 175 58 Absorbed by Shields . | . . . . Ignored by Resistances 346 | . 20 294 32 Regen/Repaired (Parts) 12 | . 12 . . Core Remaining (%) 100 | 100 . . . Volleys Fired 70 | . 11 56 3 Largest 2 | . 1 2 2 Hottest 53 | . 20 53 53 Shots Fired 128 | . 11 111 6 Gun 124 | . 11 108 5 Cannon 1 | . . . 1 Launcher 3 | . . 3 . Special . | . . . . Kinetic 125 | . 11 108 6 Thermal . | . . . . Explosive 3 | . . 3 . Electromagnetic . | . . . . Robot Hit Streak 20 | . 6 20 8 Robot Miss Streak 4 | . 1 4 . Penetration Max . | . . . . Secondary Targets 2 | . . 2 . Max Gunslinging Chain 1 | . . 1 . Shots Hit Robots 98 | . 10 82 6 Core Hits 65 | . 5 60 . Critical Kills 1 | . . 1 . Critical Parts Destroyed 1 | . . 1 . Critical Strikes 3 | . . 2 1 Destroy 2 | . . 2 . Blast 1 | . . . 1 Melee Attacks . | . . . . Impact . | . . . . Slashing . | . . . . Piercing . | . . . . Sneak Attacks . | . . . . Combat Hostiles . | . . . . Follow-up Attacks . | . . . . Damage Inflicted 1746 | . 120 1558 68 Guns 982 | . 120 813 49 Cannons 19 | . . . 19 Explosions 743 | . . 743 . Melee . | . . . . Ramming 2 | . . 2 . Kinetic 1001 | . 120 813 68 Thermal . | . . . . Explosive 743 | . . 743 . Electromagnetic . | . . . . Impact . | . . . . Slashing . | . . . . Piercing . | . . . . Highest Corruption . | . . . . Average Corruption . | . . . . Corruption Purged . | . . . . Corruption Blocked . | . . . . Overload Shots . | . . . . Overflow Damage 8 | . . 8 . Projectiles . | . . . . Explosions 8 | . . 8 . Melee . | . . . . Knockbacks . | . . . . Impact . | . . . . Kinetic . | . . . . Secondary . | . . . . Self-Inflicted Damage 30 | . . 30 . Shots 2 | . . 2 . Rammed 1 | . . 1 . Targets Rammed 1 | . . 1 . Kicked . | . . . . Crushed . | . . . . Highest Temperature 18 | . . 18 . Average Temperature 8 | . . 8 . Received Heat Transfer 206 | . 42 119 45 Siege Activations . | . . . . Martial Activations . | . . . . Shielding Activations . | . . . . Robots Disrupted . | . . . . Combat Hostiles . | . . . . Robots Corrupted . | . . . . Combat Hostiles . | . . . . Parts Fried . | . . . . Impact Corruptions . | . . . . Robots Melted . | . . . . Combat Hostiles . | . . . . Parts Melted . | . . . . Heat Transferred . | . . . . Parts Sabotaged . | . . . . Parts Stolen . | . . . . Parts Stripped . | . . . . Power Chain Reactions . | . . . . Alert | -11 -10 -10 -10 ------- Run | Yrd Mat Min Sub Maximum Alert Level . | . . . . Low Security (%) 100 | 100 100 100 . Level 1 . | . . . . Level 2 . | . . . . Level 3 . | . . . . Level 4 . | . . . . Level 5 . | . . . . High Security . | . . . . Max Security . | . . . . Peak Influence 125 | . 54 125 . Initial . | . . . . Average 17 | . 8 20 . Influence Increases 537 | . 106 431 . Destroy 0b10 Robot/C 360 | . 60 300 . Destroy Leader 70 | . 10 60 . Successful Hack 36 | . 36 . . Destroy Structure 26 | . . 26 . Lose Combat Pursuer 45 | . . 45 . Influence Decreases 537 | . 106 431 . Time Decay 471 | . 86 385 . Lost Part 46 | . . 46 . Purge Threat 20 | . 20 . . Squads Dispatched 2 | . 2 . . Investigation 2 | . 2 . . Extermination . | . . . . Reinforcement . | . . . . Assault . | . . . . Garrison . | . . . . Intercept . | . . . . Searches Triggered . | . . . . Construction Impeded . | . . . . Haulers Reinforced . | . . . . Active Scanning Responses . | . . . . Cargo Convoy Interrupts . | . . . . Stealth | -11 -10 -10 -10 --------- Run | Yrd Mat Min Sub Distress Signals 2 | . 1 1 . Communications Jammed . | . . . . Distress Signals . | . . . . Times Spotted 43 | . 4 37 2 Peak Tracking Total 16 | . 3 16 2 Tactical Retreats 3 | . . 3 . Traps | -11 -10 -10 -10 ------- Run | Yrd Mat Min Sub Traps Triggered . | . . . . Indirectly . | . . . . Trap Hack Attempts . | . . . . Triggered . | . . . . Disarmed . | . . . . Reprogrammed . | . . . . Reused . | . . . . Traps Extracted . | . . . . Installed . | . . . . Triggered . | . . . . Machines | -11 -10 -10 -10 ---------- Run | Yrd Mat Min Sub Machines Disabled . | . . . . Max in Single Turn . | . . . . Machines Repaired . | . . . . Machines Dismantled . | . . . . Machines Sabotaged . | . . . . Overloaded Fab Kills . | . . . . Hacking | -11 -10 -10 -10 --------- Run | Yrd Mat Min Sub Machines Accessed 8 | . 8 . . Terminals 6 | . 6 . . Fabricators . | . . . . Repair Stations 1 | . 1 . . Recycling Units 1 | . 1 . . Scanalyzers . | . . . . Garrison Access . | . . . . Total Hacks 28 | . 28 . . Successful 18 | . 18 . . Failed 10 | . 10 . . Catastrophic 1 | . 1 . . Database Lockouts . | . . . . Manual . | . . . . Terminals 22 | . 22 . . Fabricators . | . . . . Repair Stations 4 | . 4 . . Recycling Units 2 | . 2 . . Scanalyzers . | . . . . Garrison Access . | . . . . Terminal Hacks 13 | . 13 . . Prototype ID Bank 3 | . 3 . . Branch Access Points 1 | . 1 . . Emergency Access Points 1 | . 1 . . Scanalyzer Index 1 | . 1 . . Alert Level 3 | . 3 . . Unreport Threat 1 | . 1 . . Maintenance Status 1 | . 1 . . Transport Status 1 | . 1 . . Hauler Manifests 1 | . 1 . . Fabricator Hacks . | . . . . Repair Station Hacks 4 | . 4 . . Scan Component 2 | . 2 . . Repair 2 | . 2 . . Recycling Unit Hacks 1 | . 1 . . Report Inventory 1 | . 1 . . Scanalyzer . | . . . . Garrison Access Hacks . | . . . . Unauthorized Hacks . | . . . . Terminals . | . . . . Fabricators . | . . . . Repair Stations . | . . . . Recycling Units . | . . . . Scanalyzers . | . . . . Garrison Access . | . . . . Data Cores Recovered . | . . . . Used . | . . . . Hacking Detections 8 | . 8 . . Full Trace Events 1 | . 1 . . Feedback Events . | . . . . Feedback Blocked . | . . . . Robot Schematics Acquired . | . . . . Robots Built . | . . . . Authchips . | . . . . Time . | . . . . Total Robot Build Rating . | . . . . Part Schematics Acquired . | . . . . Parts Built . | . . . . Authchips . | . . . . Time . | . . . . Total Part Build Rating . | . . . . Parts Repaired 2 | . 2 . . Time 52 | . 52 . . Parts Recycled . | . . . . Recycled Matter . | . . . . Retrieved Matter . | . . . . Retrieved Components . | . . . . Parts Scanalyzed . | . . . . Part Schematics Acquired . | . . . . Parts Damaged . | . . . . Bothacking | -11 -10 -10 -10 ------------ Run | Yrd Mat Min Sub Used RIF Installer . | . . . . Robots Hacked . | . . . . Non-combat . | . . . . Combat . | . . . . Robot Hacks Applied . | . . . . Relay Couplers Released . | . . . . Fabnet Peak Effective % . | . . . . Robots Rewired . | . . . . Allies Hacked . | . . . . Hacks Repelled . | . . . . Allies | -11 -10 -10 -10 -------- Run | Yrd Mat Min Sub Total Allies . | . . . . Largest Group . | . . . . Highest-Rated Group . | . . . . Highest-Rated Ally . | . . . . Total Orders . | . . . . Ally Attacks . | . . . . Total Damage . | . . . . Kills . | . . . . Allies Corrupted . | . . . . Allies Melted . | . . . . Intel | -11 -10 -10 -10 ------- Run | Yrd Mat Min Sub Active Infowar (turns) 888 | . 53 671 164 Sensors 888 | . 53 671 164 Robot Analysis Total . | . . . . Derelict Logs Recovered 2 | . . 2 . Drone Launches . | . . . . Drone Recoveries . | . . . . Exploration | -11 -10 -10 -10 ------------- Run | Yrd Mat Min Sub Turns Passed 2419 | 92 487 1676 164 Spaces Moved 1096 | 56 276 688 76 Core 11 | 11 . . . Treads 67 | 45 . 22 . Legs . | . . . . Wheels 1018 | . 276 666 76 Hover . | . . . . Flight . | . . . . Fastest Speed 50 | 50 80 200 200 Average Speed 188 | 138 144 208 200 Slowest Speed 480 | 160 200 480 200 Overloaded Moves . | . . . . Propulsion Burnouts . | . . . . Robots Hopped . | . . . . Potential Cave-ins . | . . . . Cave-ins Triggered . | . . . . Exploration Rate (%) 38 | 5 43 99 7 Regions Visited 3 Branch Regions 2 Pre-discovered Areas 1 | . . 1 . Known Exits Taken 1 | . 1 . . Unknown Exits Taken 2 | 1 . 1 . Scrap Searched 1 | . . 1 . Spaces Dug . | . . . . Terrain Destroyed 28 | . . 28 . Melee . | . . . . Projectile . | . . . . AOE 28 | . . 28 . Terrain Rammed . | . . . . Walls Destroyed . | . . . . Machines Disabled . | . . . . Actions | -11 -10 -10 -10 --------- Run | Yrd Mat Min Sub Total 1333 | 71 352 826 84 Wait 105 | . 44 59 2 Move 1093 | 55 275 687 76 Hop . | . . . . Pick Up 33 | 10 8 13 2 Fast Attach 4 | . 4 . . Attach 14 | 6 1 6 1 Detach . | . . . . Swap 6 | . 4 2 . Drop 7 | . 5 2 . Fire 70 | . 11 56 3 Melee . | . . . . Ram 1 | . . 1 . Kick . | . . . . Crush . | . . . . Escape Stasis . | . . . . Rewire . | . . . . Trap . | . . . . Miscellaneous . | . . . . Route ------- -11/Scrapyard -10/Materials -10/Mines (discovered 3 exits: *Mat x2 / [*Sub]) -10/Subcaves History --------- Turn | Location | Event 6 | -11/Scrapyard | Discovered new exit (range 15) 93 | -11/Scrapyard | Entered Materials 94 | -10/Materials | Met a group of wandering Federalists 199 | -10/Materials | Repaired Lgt. Assault Rifle 243 | -10/Materials | Repaired Wheel 281 | -10/Materials | Identified exit to Mines 301 | -10/Materials | Build established: Mutant 580 | -10/Materials | Entered Mines 590 | -10/Mines | Found DCF Scrap (15 items) 1156 | -10/Mines | Identified exit to Materials 1388 | -10/Mines | Discovered exit to Materials (range 13) 1415 | -10/Mines | Received a Rocket Launcher from a helpful Derelict 1525 | -10/Mines | Assembled infested the area 1530 | -10/Mines | Assisted by a Guerilla fighting off Assembled 1533 | -10/Mines | Learned location of Zion (-6) 1545 | -10/Mines | Core integrity fell below 50% 1570 | -10/Mines | Core integrity fell below 20% 1597 | -10/Mines | Lost 6 parts (2n1u3w) 1602 | -10/Mines | Destroyed 16 combat bots 2076 | -10/Mines | Discovered new exit (range 8) 2256 | -10/Mines | Entered Subcaves 2257 | -10/Subcaves | Approached by a straggling Scientist 2307 | -10/Subcaves | Shifting Twisted Machinery released Battle Cannon 2341 | -10/Subcaves | Shifting Twisted Machinery released Mak. Light Armor Plating 2391 | -10/Subcaves | Shifting Twisted Machinery released Flamer 2420 | -10/Subcaves | Destroyed by WJ-4H4(R) with Subdweller Beam Cannon Last Messages --------------- back to the UFD." 02271_ EX-Z91(z): "She is not going to be happy we haven't found any suitable candidates yet." 1F-FGT(c): "I think it's somewhere northeast of here" Battle Cannon falls loose from the Twisted Machinery. 02329_ Acquired Battle Cannon. Mak. Light Armor Plating falls loose from the Twisted Machinery. 02354_ Acquired Mak. Light Armor Plating. 1F-FGT(c): "I think it's somewhere northeast of here" Flamer falls loose from the Twisted Machinery. 1F-FGT(c): "I think it's somewhere northeast of here" 02412_ Lgt. Treads destroyed. 02416_ Assault Rifle destroyed. 02419_ WJ-4H4(R) Disposable Heat Sink blasted off. Map ----- +----------------------------------------------------+ | ?????????????????????????????????????????????????? | | ?????????????????????????????????????????????????? | | ?????????????????????????????????????????????????? | | ?????????????????????????????????????????????????? | | ?????????????????????????????????????????????????? | | ?????????????????????????????????????????????????? | | ?????????????????????????????????????????????????? | | ?????????????????????????????????????????????????? | | ?????????????????????????????????????????????????? | | ?????????????????????????????????????????????????? | | ?????????????????????????????????????????????????? | | ?????????????????????????????????????????????????? | | ???????????????????????????? ? ?#???????????????? | | ???????????????????????????# #???????????????? | | ??????????????????????????? ????????????????? | | ??????????????????????????? ????????????????? | | ?????????????????????????## ?????????????????? | | ?????????????????????????# ??????????????????? | | ?????????????????????????# ???????????????????? | | ?????????????????????????# " ???????????????????? | | ????????????????????????## " ????????????????????? | | ???????????????????????## "|?????????????????????? | | ???????????????????????# RR#?????????????????????? | | ???????????????????????# ##????????????????????? | | ???????????????????????## " #????????????????????? | | ???????????????????##### @ #????????????????????? | | ???????????????????# # ##????????????????????? | | ???????????????????## ## ##????????????????????? | | ???????????????????## "##???????????????????? | | ???????????????????# ""#???????????????????? | | ???????????????????#? ###""#???????????????????? | | ???????????????????# ##??###???????????????????? | | ???????????????????## ####??????????????????????? | | ???????????????????# ####???????????????????? | | ???????????????????# ""###?????????????????? | | ???????????????????# ##????????????????? | | ???????????????????# "#????????????????? | | ???????????????????## ### "####????????????####? | | ????????????????????###?# " ##???????????????# ## | | ??????????????????###???# #???????????####?# # | | ??????????????????# #### #########??## #?# | | ??????????????????# ### ## #### ### | | ?????????????????## ## " ## | | ??????????????#### | | ??????????????# ## #### | | ??????????????## """ #####??## | | ???????????????# ## """"""#?????# ### | | ???????????????# ?# ###????# ##?? | | ???????????????# ??# ##??????# #??? | | ??????????????# ???## #???????## #??? | +----------------------------------------------------+ Best States ------------- Heat Dissipation 25 Energy Generation 10 Energy Capacity 125 Matter Stores 300 Matter Capacity 300 Sight Range 16 Robot Scan Range 14 Terrain Scan Density 10 Resistance: KI 20 Resistance: TH 20 Resistance: EX 20 Resistance: EM 20 Resistance: I 20 Resistance: S 20 Resistance: P 20 Evasion (%) 50 Targeting Accuracy 5 Recoil Reduction 2 Offensive Hacking 10 Item Schematics ----------------- None Robot Schematics ------------------ None Fabricated ------------ Nothing Repaired ---------- Lgt. Assault Rifle | 96% | -10/Materials Wheel | 77% | -10/Materials Alien Tech Used ----------------- None Achievements -------------- None Challenges ------------ None Game ------ Seed SmartbombLightRipteeth Manual? 0 Play Time 00:28:33 Cumulative 93.5 hours Start 2025.05.06 @ 18:31:01 End 2025.08.25 @ 21:58:30 Sessions 1 Manual Loads 0 Difficulty Adventurer Special Mode None Game No. 37 Rogue 18 Adventurer 19 Explorer 0 Win Type - Total 0 Types 0/0/0/0/0/0/0/0/0/0 Lore% 29 Gallery% 38 Achievement% 35 Wizard Run 0 Options --------- Layout 1 ASCII 0 Keyboard 0 Movement Mouse Keybinds 0 Fullscreen 0 Font 20/SmallcapsGlow Map View 50x35 Zoom Use 0% Tactical HUD 1 Map Filters NONE Filters NONE Steam 1 RUN: 36eed544-3e72-4f55-8fe8-763479b9dd4f